[Event "*** Titled Tuesday Blitz"]
[Site "Chess.com"]
[Date "2021.02.09"]
[Round "5"]
[White "kubal123"]
[Black "Unknown_IM"]
[Result "1/2-1/2"]
[WhiteElo "2206"]
[BlackElo "2353"]
[TimeControl "180+1"]
[EndTime "10:59:35 PST"]
[Termination "Game drawn by repetition"]

1. d4 {[%clk 0:03:00.9]} 1... Nf6 {[%clk 0:02:58.8]} 2. Nf3 {[%clk 0:03:00.5]}
2... d5 {[%clk 0:02:57.2]} 3. Bf4 {[%clk 0:02:59.9]} 3... c6 {[%clk 0:02:57.5]}
4. e3 {[%clk 0:02:58.8]} 4... Qb6 {[%clk 0:02:57.8]} 5. Nbd2 {[%clk 0:02:49.8]}
5... Nh5 {[%clk 0:02:54.5]} 6. Bd3 {[%clk 0:02:41.2]} 6... Nxf4 {[%clk
0:02:53.3]} 7. exf4 {[%clk 0:02:42.1]} 7... g6 {[%clk 0:02:53.4]} 8. O-O {[%clk
0:02:37.2]} 8... Bg7 {[%clk 0:02:50.5]} 9. Nb3 {[%clk 0:02:24.8]} 9... O-O
{[%clk 0:02:48]} 10. c3 {[%clk 0:02:24.5]} 10... Nd7 {[%clk 0:02:46.8]} 11. Qe2
{[%clk 0:02:23.9]} 11... e6 {[%clk 0:02:45.9]} 12. Ne5 {[%clk 0:02:16]} 12...
Nxe5 {[%clk 0:01:35.5]} 13. fxe5 {[%clk 0:02:15.4]} 13... a5 {[%clk 0:01:31.5]}
14. Nc5 {[%clk 0:02:08.1]} 14... Re8 {[%clk 0:01:30.4]} 15. Rab1 {[%clk
0:01:59.7]} 15... Bf8 {[%clk 0:01:21.9]} 16. b4 {[%clk 0:01:37.4]} 16... axb4
{[%clk 0:01:21.1]} 17. cxb4 {[%clk 0:01:38.3]} 17... Ra3 {[%clk 0:01:07.2]} 18.
Qb2 {[%clk 0:00:49.9]} 18... Qa7 {[%clk 0:01:04.1]} 19. Rfc1 {[%clk 0:00:26.7]}
19... Rxa2 {[%clk 0:01:00.4]} 20. Qc3 {[%clk 0:00:25.8]} 20... Ra3 {[%clk
0:00:55.3]} 21. Rb3 {[%clk 0:00:17.7]} 21... Rxb3 {[%clk 0:00:45.1]} 22. Nxb3
{[%clk 0:00:18.6]} 22... Qa3 {[%clk 0:00:33.2]} 23. Nc5 {[%clk 0:00:12.9]} 23...
Qxc3 {[%clk 0:00:33.2]} 24. Rxc3 {[%clk 0:00:13.8]} 24... b6 {[%clk 0:00:19.5]}
25. Na4 {[%clk 0:00:13.3]} 25... Bb7 {[%clk 0:00:16.3]} 26. Nxb6 {[%clk
0:00:12.3]} 26... Bxb4 {[%clk 0:00:15.9]} 27. Rb3 {[%clk 0:00:12.9]} 27... Bf8
{[%clk 0:00:15.2]} 28. Nd7 {[%clk 0:00:11.9]} 28... Ra8 {[%clk 0:00:06.6]} 29.
Rxb7 {[%clk 0:00:10.4]} 29... Ra1+ {[%clk 0:00:07.5]} 30. Bf1 {[%clk 0:00:10.6]}
30... Kg7 {[%clk 0:00:08.4]} 31. Nxf8 {[%clk 0:00:10.4]} 31... Kxf8 {[%clk
0:00:08.6]} 32. g3 {[%clk 0:00:11.3]} 32... Kg7 {[%clk 0:00:08.9]} 33. Rb4
{[%clk 0:00:10.9]} 33... Rc1 {[%clk 0:00:08.9]} 34. Kg2 {[%clk 0:00:11.1]} 34...
c5 {[%clk 0:00:09.4]} 35. dxc5 {[%clk 0:00:12]} 35... Rxc5 {[%clk 0:00:10.3]}
36. f4 {[%clk 0:00:12.4]} 36... Rc2+ {[%clk 0:00:10.2]} 37. Kg1 {[%clk
0:00:12.2]} 37... Rc1 {[%clk 0:00:10.4]} 38. Rb2 {[%clk 0:00:12.1]} 38... h6
{[%clk 0:00:10.5]} 39. Rd2 {[%clk 0:00:12.5]} 39... g5 {[%clk 0:00:10.6]} 40.
Kg2 {[%clk 0:00:12.3]} 40... Rc3 {[%clk 0:00:08.8]} 41. Be2 {[%clk 0:00:11.7]}
41... Ra3 {[%clk 0:00:09]} 42. Bf3 {[%clk 0:00:11.4]} 42... Ra4 {[%clk
0:00:09.1]} 43. fxg5 {[%clk 0:00:10.8]} 43... hxg5 {[%clk 0:00:10]} 44. Kf2
{[%clk 0:00:09.1]} 44... g4 {[%clk 0:00:09.6]} 45. Be2 {[%clk 0:00:08.3]} 45...
Re4 {[%clk 0:00:09.5]} 46. Rb2 {[%clk 0:00:04.8]} 46... Rxe5 {[%clk 0:00:06.8]}
47. Bxg4 {[%clk 0:00:04.7]} 47... Re4 {[%clk 0:00:06.9]} 48. Bf3 {[%clk
0:00:04.9]} 48... Ra4 {[%clk 0:00:07]} 49. h4 {[%clk 0:00:04.9]} 49... Ra3
{[%clk 0:00:06.8]} 50. Re2 {[%clk 0:00:04.4]} 50... Rb3 {[%clk 0:00:06.6]} 51.
Re3 {[%clk 0:00:04.7]} 51... Rb2+ {[%clk 0:00:06.9]} 52. Re2 {[%clk 0:00:05.3]}
52... Rb3 {[%clk 0:00:07.5]} 53. Re3 {[%clk 0:00:05.8]} 53... Rb2+ {[%clk
0:00:08]} 54. Be2 {[%clk 0:00:06.3]} 54... Ra2 {[%clk 0:00:08.5]} 55. Rd3 {[%clk
0:00:06.4]} 55... Ra4 {[%clk 0:00:08.5]} 56. Ke3 {[%clk 0:00:06.8]} 56... Ra2
{[%clk 0:00:08.7]} 57. Rd2 {[%clk 0:00:06.6]} 57... Ra3+ {[%clk 0:00:08.9]} 58.
Bd3 {[%clk 0:00:07]} 58... Kf6 {[%clk 0:00:08.9]} 59. Rf2+ {[%clk 0:00:06.6]}
59... Kg7 {[%clk 0:00:09.3]} 60. h5 {[%clk 0:00:07]} 60... e5 {[%clk 0:00:06.5]}
61. Kd2 {[%clk 0:00:07.1]} 61... Ra2+ {[%clk 0:00:05.1]} 62. Ke3 {[%clk
0:00:06.6]} 62... Ra3 {[%clk 0:00:04.3]} 63. Kd2 {[%clk 0:00:07]} 63... Ra2+
{[%clk 0:00:04.5]} 64. Bc2 {[%clk 0:00:07.2]} 64... d4 {[%clk 0:00:03.4]} 65.
Rf5 {[%clk 0:00:05.8]} 65... f6 {[%clk 0:00:03]} 66. h6+ {[%clk 0:00:06.3]}
66... Kf7 {[%clk 0:00:03.5]} 67. h7 {[%clk 0:00:05.9]} 67... Kg7 {[%clk
0:00:03.5]} 68. Rh5 {[%clk 0:00:06.3]} 68... Kh8 {[%clk 0:00:03.6]} 69. Rh6
{[%clk 0:00:06.7]} 69... e4 {[%clk 0:00:03.5]} 70. Rxf6 {[%clk 0:00:06.4]} 70...
Kxh7 {[%clk 0:00:03.3]} 71. Rd6 {[%clk 0:00:05]} 71... d3 {[%clk 0:00:03.5]} 72.
Rc6 {[%clk 0:00:04.6]} 72... dxc2 {[%clk 0:00:02.6]} 73. Rxc2 {[%clk 0:00:05.5]}
73... e3+ {[%clk 0:00:03.2]} 74. Kd1 {[%clk 0:00:04.7]} 74... Rxc2 {[%clk
0:00:02]} 75. Kxc2 {[%clk 0:00:04.6]} 75... Kg6 {[%clk 0:00:01.9]} 76. Kd3
{[%clk 0:00:04.8]} 76... Kf5 {[%clk 0:00:02.8]} 77. Kxe3 {[%clk 0:00:05.7]}
77... Kg4 {[%clk 0:00:03.7]} 78. Kf2 {[%clk 0:00:05.9]} 78... Kg5 {[%clk
0:00:04.3]} 79. Kf3 {[%clk 0:00:06.2]} 79... Kf5 {[%clk 0:00:04.9]} 80. g4+
{[%clk 0:00:06.6]} 80... Kg5 {[%clk 0:00:05.5]} 81. Kg3 {[%clk 0:00:07.5]} 81...
Kg6 {[%clk 0:00:06.1]} 82. Kf4 {[%clk 0:00:08.4]} 82... Kf6 {[%clk 0:00:06.4]}
83. g5+ {[%clk 0:00:08.9]} 83... Kg6 {[%clk 0:00:07]} 84. Kg4 {[%clk 0:00:09.8]}
84... Kg7 {[%clk 0:00:07.6]} 85. Kf5 {[%clk 0:00:10.7]} 85... Kf7 {[%clk
0:00:08.2]} 86. g6+ {[%clk 0:00:10.9]} 86... Kg7 {[%clk 0:00:08.7]} 87. Kg5
{[%clk 0:00:11.8]} 87... Kg8 {[%clk 0:00:09.2]} 88. Kf6 {[%clk 0:00:12.7]} 88...
Kf8 {[%clk 0:00:09.4]} 89. Kf5 {[%clk 0:00:13.5]} 89... Kg7 {[%clk 0:00:09.6]}
90. Kg5 {[%clk 0:00:14.4]} 90... Kg8 {[%clk 0:00:10.1]} 91. Kh5 {[%clk
0:00:15.3]} 91... Kg7 {[%clk 0:00:10.6]} 92. Kg5 {[%clk 0:00:15.3]} 1/2-1/2

[Event "*** Titled Tuesday Blitz"]
[Site "Chess.com"]
[Date "2021.02.09"]
[Round "5"]
[White "crazy_but_lazy"]
[Black "malakismayil"]
[Result "0-1"]
[WhiteElo "2506"]
[BlackElo "2374"]
[TimeControl "180+1"]
[EndTime "10:59:36 PST"]
[Termination "malakismayil won by checkmate"]

1. c4 {[%clk 0:03:00.9]} 1... e5 {[%clk 0:02:57.6]} 2. Nc3 {[%clk 0:02:56.4]}
2... Nf6 {[%clk 0:02:57.2]} 3. Nf3 {[%clk 0:02:54.9]} 3... Nc6 {[%clk
0:02:54.7]} 4. e3 {[%clk 0:02:54.9]} 4... d6 {[%clk 0:02:50.8]} 5. d4 {[%clk
0:02:54.4]} 5... Bg4 {[%clk 0:02:46.9]} 6. Be2 {[%clk 0:02:50.3]} 6... Be7
{[%clk 0:02:37.4]} 7. h3 {[%clk 0:02:36.1]} 7... Bh5 {[%clk 0:02:28.8]} 8. O-O
{[%clk 0:02:26.4]} 8... O-O {[%clk 0:02:27.4]} 9. b3 {[%clk 0:02:17.9]} 9... h6
{[%clk 0:02:12]} 10. Bb2 {[%clk 0:02:04.1]} 10... Nd7 {[%clk 0:01:49.2]} 11. d5
{[%clk 0:01:50.1]} 11... Ncb8 {[%clk 0:01:41.1]} 12. b4 {[%clk 0:01:45.4]} 12...
a5 {[%clk 0:01:32.9]} 13. a3 {[%clk 0:01:44.4]} 13... Na6 {[%clk 0:01:31.9]} 14.
Qb3 {[%clk 0:01:38.4]} 14... f5 {[%clk 0:01:24.1]} 15. Nd2 {[%clk 0:01:34]}
15... Bxe2 {[%clk 0:01:17.6]} 16. Nxe2 {[%clk 0:01:34.9]} 16... Bf6 {[%clk
0:01:15.2]} 17. f4 {[%clk 0:01:23.7]} 17... Qe8 {[%clk 0:00:50.9]} 18. Rae1
{[%clk 0:01:13.7]} 18... Qg6 {[%clk 0:00:46.3]} 19. Nf3 {[%clk 0:01:01.6]} 19...
Rae8 {[%clk 0:00:42.2]} 20. Bc3 {[%clk 0:00:43.3]} 20... Qf7 {[%clk 0:00:35.7]}
21. Qb1 {[%clk 0:00:28.8]} 21... exf4 {[%clk 0:00:31.9]} 22. Bxf6 {[%clk
0:00:28]} 22... Nxf6 {[%clk 0:00:31.7]} 23. Nxf4 {[%clk 0:00:28]} 23... Ne4
{[%clk 0:00:31]} 24. Ne6 {[%clk 0:00:26.2]} 24... Rxe6 {[%clk 0:00:30]} 25. dxe6
{[%clk 0:00:26.2]} 25... Qxe6 {[%clk 0:00:30.9]} 26. Qb2 {[%clk 0:00:18.4]}
26... Qxc4 {[%clk 0:00:29.4]} 27. Nd4 {[%clk 0:00:18.5]} 27... Qd5 {[%clk
0:00:20.7]} 28. Rd1 {[%clk 0:00:13]} 28... Qe5 {[%clk 0:00:19.5]} 29. Qb3+
{[%clk 0:00:11.9]} 29... Kh7 {[%clk 0:00:18.9]} 30. Ne6 {[%clk 0:00:10.8]} 30...
Rf6 {[%clk 0:00:18.9]} 31. Nf4 {[%clk 0:00:09.3]} 31... axb4 {[%clk 0:00:18.2]}
32. Rd5 {[%clk 0:00:09.1]} 32... Qe7 {[%clk 0:00:17.7]} 33. axb4 {[%clk
0:00:09.5]} 33... c6 {[%clk 0:00:18]} 34. Ra5 {[%clk 0:00:08.7]} 34... Nc7
{[%clk 0:00:16.6]} 35. Qd3 {[%clk 0:00:08.6]} 35... d5 {[%clk 0:00:16.6]} 36.
Ra7 {[%clk 0:00:08]} 36... Nd6 {[%clk 0:00:15.6]} 37. Ra2 {[%clk 0:00:05.4]}
37... Ncb5 {[%clk 0:00:15.6]} 38. Ne2 {[%clk 0:00:05.2]} 38... Re6 {[%clk
0:00:15.3]} 39. Nd4 {[%clk 0:00:04.6]} 39... Rxe3 {[%clk 0:00:13.6]} 40. Nxf5
{[%clk 0:00:04.7]} 40... Rxd3 {[%clk 0:00:12.8]} 41. Nxe7 {[%clk 0:00:05.1]}
41... Rd4 {[%clk 0:00:12.7]} 42. Re2 {[%clk 0:00:04.8]} 42... Rxb4 {[%clk
0:00:12.7]} 43. Nf5 {[%clk 0:00:02.8]} 43... Nxf5 {[%clk 0:00:12.6]} 44. Rxf5
{[%clk 0:00:03.7]} 44... Nd4 {[%clk 0:00:12.9]} 45. Rf7 {[%clk 0:00:03.7]} 45...
Nxe2+ {[%clk 0:00:12.8]} 46. Kf2 {[%clk 0:00:04.3]} 46... Nd4 {[%clk 0:00:13.7]}
47. Ke3 {[%clk 0:00:04.6]} 47... Ne6 {[%clk 0:00:13.8]} 48. Re7 {[%clk
0:00:05.1]} 48... Re4+ {[%clk 0:00:13.1]} 49. Kd2 {[%clk 0:00:04.8]} 49... Nc5
{[%clk 0:00:12.6]} 50. Rc7 {[%clk 0:00:05.3]} 50... Rd4+ {[%clk 0:00:11.1]} 51.
Ke2 {[%clk 0:00:05.5]} 51... Rc4 {[%clk 0:00:12]} 52. Kf3 {[%clk 0:00:05.2]}
52... Rb4 {[%clk 0:00:12.3]} 53. g4 {[%clk 0:00:05.6]} 53... Rb3+ {[%clk
0:00:13]} 54. Ke2 {[%clk 0:00:05.9]} 54... Ne4 {[%clk 0:00:13.4]} 55. h4 {[%clk
0:00:05.9]} 55... Ng3+ {[%clk 0:00:12.6]} 56. Kf2 {[%clk 0:00:06]} 56... Ne4+
{[%clk 0:00:13.5]} 57. Ke2 {[%clk 0:00:06.5]} 57... Rg3 {[%clk 0:00:12.8]} 58.
Rxb7 {[%clk 0:00:07]} 58... Rxg4 {[%clk 0:00:13]} 59. h5 {[%clk 0:00:07.4]}
59... Rg5 {[%clk 0:00:13.2]} 60. Rc7 {[%clk 0:00:08.1]} 60... c5 {[%clk
0:00:13.6]} 61. Kf3 {[%clk 0:00:07.8]} 61... Rxh5 {[%clk 0:00:13.4]} 62. Kf4
{[%clk 0:00:08.6]} 62... Rg5 {[%clk 0:00:12.5]} 63. Rd7 {[%clk 0:00:08.9]} 63...
c4 {[%clk 0:00:12.2]} 64. Rc7 {[%clk 0:00:09.6]} 64... Nf6 {[%clk 0:00:11]} 65.
Rc5 {[%clk 0:00:08.3]} 65... Rg4+ {[%clk 0:00:09.5]} 66. Kf5 {[%clk 0:00:08.3]}
66... Rg5+ {[%clk 0:00:09]} 67. Ke6 {[%clk 0:00:08.6]} 67... Kg6 {[%clk
0:00:09.8]} 68. Rc8 {[%clk 0:00:08.3]} 68... h5 {[%clk 0:00:06.9]} 69. Rc6
{[%clk 0:00:08.6]} 69... h4 {[%clk 0:00:07.1]} 70. Ra6 {[%clk 0:00:09.3]} 70...
h3 {[%clk 0:00:07.4]} 71. Ra2 {[%clk 0:00:10]} 71... Rg2 {[%clk 0:00:06.6]} 72.
Ra1 {[%clk 0:00:09.8]} 72... h2 {[%clk 0:00:06.8]} 73. Ke7 {[%clk 0:00:10.4]}
73... Rg1 {[%clk 0:00:05.9]} 74. Ra6 {[%clk 0:00:10.8]} 74... h1=Q {[%clk
0:00:05.5]} 75. Re6 {[%clk 0:00:11.7]} 75... Qf3 {[%clk 0:00:04.9]} 76. Kd6
{[%clk 0:00:11.6]} 76... Rg2 {[%clk 0:00:05.3]} 77. Ke7 {[%clk 0:00:12.5]} 77...
Re2 {[%clk 0:00:05.7]} 78. Kf8 {[%clk 0:00:13.1]} 78... Re3 {[%clk 0:00:04.7]}
79. Re5 {[%clk 0:00:12.4]} 79... Ne4+ {[%clk 0:00:05]} 80. Kg8 {[%clk 0:00:13]}
80... Qf4 {[%clk 0:00:05.1]} 81. Re6+ {[%clk 0:00:12.7]} 81... Nf6+ {[%clk
0:00:04.5]} 82. Kf8 {[%clk 0:00:12.2]} 82... Kf5 {[%clk 0:00:04.7]} 83. Re5+
{[%clk 0:00:10.9]} 83... Qxe5 {[%clk 0:00:04.6]} 84. Kf7 {[%clk 0:00:11.8]}
84... Qe8+ {[%clk 0:00:04.7]} 85. Kxg7 {[%clk 0:00:11.7]} 85... Re7+ {[%clk
0:00:05.4]} 86. Kh6 {[%clk 0:00:12.6]} 86... Qg6# {[%clk 0:00:05.2]} 0-1

[Event "*** Titled Tuesday Blitz"]
[Site "Chess.com"]
[Date "2021.02.09"]
[Round "5"]
[White "KubaGepard"]
[Black "ErikBlomqvist"]
[Result "0-1"]
[WhiteElo "2357"]
[BlackElo "2521"]
[TimeControl "180+1"]
[EndTime "11:00:37 PST"]
[Termination "ErikBlomqvist won by resignation"]

1. e4 {[%clk 0:03:00.9]} 1... c6 {[%clk 0:02:57.2]} 2. c4 {[%clk 0:02:59.1]}
2... d5 {[%clk 0:02:54.5]} 3. Nc3 {[%clk 0:02:51.2]} 3... dxe4 {[%clk
0:02:45.4]} 4. Nxe4 {[%clk 0:02:52.1]} 4... Bf5 {[%clk 0:02:30.1]} 5. Ng3 {[%clk
0:02:51.4]} 5... Bg6 {[%clk 0:02:27]} 6. h4 {[%clk 0:02:50.3]} 6... h6 {[%clk
0:02:26.3]} 7. Nh3 {[%clk 0:02:48.8]} 7... e5 {[%clk 0:02:19.4]} 8. h5 {[%clk
0:02:46.4]} 8... Bh7 {[%clk 0:02:19]} 9. d3 {[%clk 0:02:35.4]} 9... Nf6 {[%clk
0:02:12]} 10. Be2 {[%clk 0:02:32.4]} 10... Bc5 {[%clk 0:02:04.7]} 11. O-O {[%clk
0:02:27.1]} 11... Nbd7 {[%clk 0:01:59.8]} 12. Be3 {[%clk 0:02:25.4]} 12... Qb6
{[%clk 0:01:49.9]} 13. Qc1 {[%clk 0:02:14.1]} 13... O-O-O {[%clk 0:01:40.8]} 14.
a4 {[%clk 0:02:05.9]} 14... a5 {[%clk 0:01:38.8]} 15. Bxc5 {[%clk 0:01:57.8]}
15... Nxc5 {[%clk 0:01:38.7]} 16. Qe3 {[%clk 0:01:54.5]} 16... Rhe8 {[%clk
0:01:11]} 17. b4 {[%clk 0:01:49.5]} 17... axb4 {[%clk 0:00:59.2]} 18. a5 {[%clk
0:01:48.7]} 18... Qa7 {[%clk 0:00:59.4]} 19. a6 {[%clk 0:01:45.6]} 19... b6
{[%clk 0:00:56.3]} 20. Rfd1 {[%clk 0:01:36.6]} 20... b3 {[%clk 0:00:34.9]} 21.
Qf3 {[%clk 0:01:26.9]} 21... Re6 {[%clk 0:00:24.2]} 22. Nf5 {[%clk 0:01:22.8]}
22... Bxf5 {[%clk 0:00:22.1]} 23. Qxf5 {[%clk 0:01:22]} 23... Kb8 {[%clk
0:00:22.5]} 24. Bf3 {[%clk 0:00:59.7]} 24... Rd4 {[%clk 0:00:13.5]} 25. Bxc6
{[%clk 0:00:39.8]} 25... Rxc6 {[%clk 0:00:12.8]} 26. Qxe5+ {[%clk 0:00:39.3]}
26... Rcd6 {[%clk 0:00:11.3]} 27. Nf4 {[%clk 0:00:37]} 27... Ncd7 {[%clk
0:00:11.1]} 28. Qe3 {[%clk 0:00:35.6]} 28... b2 {[%clk 0:00:10]} 29. Rab1 {[%clk
0:00:35]} 29... Qxa6 {[%clk 0:00:09.9]} 30. Rxb2 {[%clk 0:00:30.3]} 30... Nc5
{[%clk 0:00:04.4]} 31. Nd5 {[%clk 0:00:27.5]} 31... R4xd5 {[%clk 0:00:04.8]} 32.
cxd5 {[%clk 0:00:27.4]} 32... Rxd5 {[%clk 0:00:05.7]} 33. Rdb1 {[%clk
0:00:26.8]} 33... Ncd7 {[%clk 0:00:05.6]} 34. Rxb6+ {[%clk 0:00:25.8]} 34...
Nxb6 {[%clk 0:00:06]} 35. Rxb6+ {[%clk 0:00:26.7]} 35... Qxb6 {[%clk 0:00:06.6]}
36. Qxb6+ {[%clk 0:00:26.8]} 36... Kc8 {[%clk 0:00:07.5]} 37. d4 {[%clk
0:00:26.8]} 37... Kd7 {[%clk 0:00:07.7]} 38. Qb7+ {[%clk 0:00:26.2]} 38... Ke6
{[%clk 0:00:07.8]} 39. Qc6+ {[%clk 0:00:25.6]} 39... Ke7 {[%clk 0:00:06.7]} 40.
Qc4 {[%clk 0:00:18.7]} 40... Rxh5 {[%clk 0:00:06.1]} 41. f3 {[%clk 0:00:18.9]}
41... Rd5 {[%clk 0:00:05.9]} 42. Kf2 {[%clk 0:00:19.3]} 42... h5 {[%clk
0:00:06.1]} 43. Ke3 {[%clk 0:00:19.2]} 43... Rg5 {[%clk 0:00:05.1]} 44. g3
{[%clk 0:00:17.5]} 44... Rd5 {[%clk 0:00:03.3]} 45. Qc7+ {[%clk 0:00:17.1]}
45... Ke6 {[%clk 0:00:03.4]} 46. f4 {[%clk 0:00:17.4]} 46... Kf5 {[%clk
0:00:03.2]} 47. Qc8+ {[%clk 0:00:17.1]} 47... Kg6 {[%clk 0:00:03]} 48. Kf3
{[%clk 0:00:16.3]} 48... Rxd4 {[%clk 0:00:02.6]} 49. Qc2+ {[%clk 0:00:16.4]}
49... Kh6 {[%clk 0:00:02.9]} 50. Ke3 {[%clk 0:00:16.7]} 50... Rd5 {[%clk
0:00:02.7]} 51. f5 {[%clk 0:00:16.8]} 51... Re5+ {[%clk 0:00:02.3]} 52. Kf4
{[%clk 0:00:16.8]} 52... Re4+ {[%clk 0:00:02.9]} 53. Kf3 {[%clk 0:00:16.8]}
53... Rg4 {[%clk 0:00:03.2]} 54. Qd2+ {[%clk 0:00:16.9]} 54... Kh7 {[%clk
0:00:03.9]} 55. Qa2 {[%clk 0:00:15.4]} 55... Rg5 {[%clk 0:00:03.7]} 56. Qxf7
{[%clk 0:00:15.2]} 56... Rxf5+ {[%clk 0:00:04.1]} 57. Kg2 {[%clk 0:00:15.4]}
57... Kh6 {[%clk 0:00:04.1]} 58. Qe6 {[%clk 0:00:15.1]} 58... Kg5 {[%clk
0:00:04.5]} 59. Qe3+ {[%clk 0:00:15.1]} 59... Kg6 {[%clk 0:00:05.1]} 60. Qd3
{[%clk 0:00:15.3]} 60... Ng4 {[%clk 0:00:05.2]} 61. Qd6+ {[%clk 0:00:14.9]}
61... Rf6 {[%clk 0:00:05.4]} 62. Qd3+ {[%clk 0:00:15]} 62... Kh6 {[%clk
0:00:05.9]} 63. Qd2+ {[%clk 0:00:14.8]} 63... Kh7 {[%clk 0:00:06.3]} 64. Qd3+
{[%clk 0:00:14.8]} 64... Kg8 {[%clk 0:00:06.5]} 65. Qd8+ {[%clk 0:00:14.8]}
65... Kf7 {[%clk 0:00:07]} 66. Qd7+ {[%clk 0:00:14.9]} 66... Kg6 {[%clk
0:00:07.5]} 67. Qe8+ {[%clk 0:00:15]} 67... Kh6 {[%clk 0:00:06.9]} 68. Qh8+
{[%clk 0:00:14.9]} 68... Kg5 {[%clk 0:00:07]} 69. Qd8 {[%clk 0:00:13.5]} 69...
Kg6 {[%clk 0:00:06.3]} 70. Qe8+ {[%clk 0:00:13.1]} 70... Kg5 {[%clk 0:00:06.1]}
71. Qd8 {[%clk 0:00:12.1]} 71... Ne3+ {[%clk 0:00:05.8]} 72. Kh3 {[%clk
0:00:11]} 72... Nf5 {[%clk 0:00:05.3]} 73. Qd2+ {[%clk 0:00:10.8]} 73... Kg6
{[%clk 0:00:05.7]} 74. g4 {[%clk 0:00:11]} 74... hxg4+ {[%clk 0:00:05.1]} 75.
Kxg4 {[%clk 0:00:11.5]} 75... Nh6+ {[%clk 0:00:04.9]} 76. Kh4 {[%clk 0:00:11.5]}
76... Rf5 {[%clk 0:00:04.2]} 77. Qd6+ {[%clk 0:00:11.2]} 77... Kh7 {[%clk
0:00:04.2]} 78. Qd3 {[%clk 0:00:10.8]} 78... Kg8 {[%clk 0:00:03.7]} 79. Kg3
{[%clk 0:00:11]} 79... Rg5+ {[%clk 0:00:03.5]} 80. Kf4 {[%clk 0:00:10.7]} 80...
Rf5+ {[%clk 0:00:03.5]} 81. Ke4 {[%clk 0:00:09.5]} 81... Rf6 {[%clk 0:00:03.9]}
82. Qd8+ {[%clk 0:00:09.2]} 82... Kf7 {[%clk 0:00:04.2]} 83. Qd7+ {[%clk
0:00:09.1]} 83... Kg6 {[%clk 0:00:04.3]} 84. Qd3 {[%clk 0:00:06.9]} 84... Nf5
{[%clk 0:00:04.6]} 85. Ke5 {[%clk 0:00:06.7]} 85... Kg5 {[%clk 0:00:04.6]} 86.
Qd2+ {[%clk 0:00:06.2]} 86... Kg6 {[%clk 0:00:04.8]} 87. Qg2+ {[%clk 0:00:06.6]}
87... Kf7 {[%clk 0:00:05]} 88. Qd5+ {[%clk 0:00:06.9]} 88... Kg6 {[%clk
0:00:05]} 89. Qg2+ {[%clk 0:00:06.9]} 89... Kh7 {[%clk 0:00:05.5]} 90. Qh1+
{[%clk 0:00:07]} 90... Nh6 {[%clk 0:00:06.1]} 91. Qe4+ {[%clk 0:00:06.5]} 91...
Rf5+ {[%clk 0:00:04.6]} 92. Ke6 {[%clk 0:00:06.3]} 92... Kg8 {[%clk 0:00:03.3]}
93. Ke7 {[%clk 0:00:06.3]} 93... Rf6 {[%clk 0:00:02.9]} 94. Qd5+ {[%clk
0:00:05.9]} 94... Kh7 {[%clk 0:00:02.7]} 95. Qd3+ {[%clk 0:00:06.4]} 95... Kh8
{[%clk 0:00:03]} 96. Qd8+ {[%clk 0:00:06]} 96... Ng8+ {[%clk 0:00:03.4]} 97. Kd7
{[%clk 0:00:06.3]} 97... g5 {[%clk 0:00:02.8]} 98. Qa5 {[%clk 0:00:06.3]} 98...
Kg7 {[%clk 0:00:03]} 99. Qxg5+ {[%clk 0:00:06.2]} 99... Rg6 {[%clk 0:00:03.6]}
100. Qe5+ {[%clk 0:00:06.2]} 100... Nf6+ {[%clk 0:00:04.2]} 101. Ke7 {[%clk
0:00:06.4]} 101... Rh6 {[%clk 0:00:04.2]} 102. Qf5 {[%clk 0:00:06.3]} 102... Rg6
{[%clk 0:00:04.7]} 103. Qe6 {[%clk 0:00:05.5]} 103... Rh6 {[%clk 0:00:04.4]}
104. Qf7+ {[%clk 0:00:05.5]} 104... Kh8 {[%clk 0:00:03.9]} 105. Kf8 {[%clk
0:00:05.4]} 105... Nh7+ {[%clk 0:00:03.2]} 106. Ke8 {[%clk 0:00:05.4]} 106...
Nf6+ {[%clk 0:00:03.5]} 107. Ke7 {[%clk 0:00:04]} 107... Ng8+ {[%clk 0:00:03.1]}
108. Kd8 {[%clk 0:00:03.7]} 108... Rh7 {[%clk 0:00:03.4]} 109. Kc7 {[%clk
0:00:04.5]} 109... Rxf7+ {[%clk 0:00:03.5]} 110. Kd8 {[%clk 0:00:04.3]} 110...
Kg7 {[%clk 0:00:04.4]} 111. Ke8 {[%clk 0:00:04.4]} 111... Kf6 {[%clk 0:00:05.3]}
112. Kd8 {[%clk 0:00:04.6]} 112... Nh6 {[%clk 0:00:06.2]} 113. Ke8 {[%clk
0:00:05.1]} 113... Nf5 {[%clk 0:00:06.7]} 114. Kd8 {[%clk 0:00:06]} 114... Ke6
{[%clk 0:00:07.3]} 115. Ke8 {[%clk 0:00:06.9]} 115... Nd6+ {[%clk 0:00:07.4]}
0-1